bitfinex/quotes_BTCUSD_20251212
["timestamp","ask_amount","ask_price","bid_price","bid_amount"]
[1765529998747,0.00023083,92331.0,92330.0,0.10900609]
[1765529999714,0.22739804,92350.0,92330.0,0.10900609]
[1765529999715,0.0004,92380.0,92379.0,0.21649942]
[1765529999915,0.00078908,92380.0,92379.0,0.23361942]
[1765530000141,0.00078908,92380.0,92379.0,0.21649942]
[1765530000359,0.00078908,92380.0,92379.0,0.24899827]
[1765530000539,0.00078908,92380.0,92379.0,0.03249885]
[1765530001228,0.00078908,92380.0,92378.0,0.21650176]
[1765530001434,0.00178908,92380.0,92379.0,0.002]
[1765530001845,0.00078908,92380.0,92378.0,0.21650176]
[1765530002252,0.00178908,92380.0,92379.0,0.002]
[1765530003906,0.00078908,92380.0,92378.0,0.21750176]
[1765530004318,0.00178908,92380.0,92378.0,0.21950176]
[1765530004516,0.00178908,92380.0,92378.0,0.21850176]
[1765530004876,0.00078908,92380.0,92378.0,0.21650176]
[1765530005078,0.00178908,92380.0,92378.0,0.21850176]
[1765530005484,0.00320207,92380.0,92378.0,0.21850176]
[1765530005701,0.00078908,92380.0,92378.0,0.21650176]
[1765530005907,0.00340195,92380.0,92378.0,0.21950176]
[1765530006107,0.00340195,92380.0,92378.0,0.21850176]
[1765530007117,0.00240195,92380.0,92378.0,0.21650176]
[1765530007522,0.00340195,92380.0,92378.0,0.21850176]
[1765530008188,0.00240195,92380.0,92378.0,0.21650176]
[1765530008394,0.00240195,92380.0,92378.0,0.21750176]
[1765530008577,0.00340195,92380.0,92378.0,0.21850176]
[1765530008921,0.00240195,92380.0,92378.0,0.21650176]
[1765530010291,0.00340195,92380.0,92378.0,0.21850176]
[1765530010494,0.00340195,92380.0,92378.0,0.21950176]
[1765530010902,0.00138417,92379.0,92378.0,0.21750176]
[1765530011303,0.00138417,92379.0,92378.0,0.21850176]
[1765530011821,0.00138417,92379.0,92378.0,0.21650176]
[1765530012034,0.00238417,92379.0,92378.0,0.21850176]
[1765530012225,0.00238417,92379.0,92378.0,0.21950176]
[1765530013646,0.00238417,92379.0,92378.0,0.21850176]
[1765530014046,0.00138417,92379.0,92378.0,0.21750176]
[1765530014244,0.00238417,92379.0,92378.0,0.21850176]
[1765530014861,0.00138417,92379.0,92378.0,0.21650176]
[1765530015242,0.00238417,92379.0,92378.0,0.21850176]
[1765530015648,0.00238417,92379.0,92378.0,0.21650176]
[1765530015649,0.00138417,92379.0,92378.0,0.21650176]
[1765530016095,0.00238417,92379.0,92378.0,0.21850176]
[1765530016997,0.00238417,92379.0,92378.0,0.21950176]
[1765530017206,0.00138417,92379.0,92378.0,0.21750176]
[1765530017707,0.00238417,92379.0,92378.0,0.21850176]
[1765530018143,0.00138417,92379.0,92378.0,0.50820176]
[1765530019013,0.00238417,92379.0,92378.0,0.51020176]
[1765530019836,0.00238417,92379.0,92378.0,0.21950176]
[1765530020550,0.00138417,92379.0,92378.0,0.21750176]
[1765530020999,0.00238417,92379.0,92378.0,0.21950176]
[1765530021358,0.00138417,92379.0,92378.0,0.21750176]
[1765530021765,0.00238417,92379.0,92378.0,0.21850176]
[1765530022175,0.00138417,92379.0,92378.0,0.21650176]
[1765530022617,0.00238417,92379.0,92378.0,0.21850176]
[1765530023230,0.00238417,92379.0,92378.0,0.21950176]
[1765530023442,0.00238417,92379.0,92378.0,0.21850176]
[1765530023949,0.00138417,92379.0,92378.0,0.21750176]
[1765530024069,0.00238417,92379.0,92378.0,0.21950176]
[1765530027902,0.00138417,92379.0,92378.0,0.21750176]
[1765530028032,0.00138417,92379.0,92378.0,0.21650176]
[1765530028429,0.00238417,92379.0,92378.0,0.21850176]
[1765530028559,0.00138417,92379.0,92378.0,0.21650176]
[1765530029411,0.00138417,92379.0,92378.0,0.21750176]
[1765530029990,0.00138417,92379.0,92378.0,0.001]
[1765530030290,0.00238417,92379.0,92378.0,0.003]
[1765530030690,0.00138417,92379.0,92378.0,0.001]
[1765530030921,0.00238417,92379.0,92378.0,0.003]
[1765530031122,0.00238417,92379.0,92378.0,0.002]
[1765530031534,0.00138417,92379.0,92376.0,0.01082532]
[1765530031862,0.001,92379.0,92378.0,0.002]
[1765530032304,0.00238417,92379.0,92378.0,0.002]
[1765530032441,0.00238417,92379.0,92378.0,0.21950176]
[1765530032645,0.00238417,92379.0,92378.0,0.21850176]
[1765530033166,0.00138417,92379.0,92378.0,0.21650176]
[1765530033619,0.00238417,92379.0,92376.0,0.002]
[1765530033828,0.00261287,92379.0,92376.0,0.002]
[1765530034033,0.00161287,92379.0,92375.0,0.01082543]
[1765530034395,0.01343784,92379.0,92378.0,0.002]
[1765530034922,0.00161287,92379.0,92376.0,0.01082532]
[1765530035120,0.00261287,92379.0,92376.0,0.01082532]
[1765530036151,0.00261287,92379.0,92376.0,0.22733119]
[1765530036586,0.00161287,92379.0,92376.0,0.22733119]
[1765530036722,0.00261287,92379.0,92376.0,0.22933119]
[1765530037500,0.00161287,92379.0,92376.0,0.22733119]
[1765530037642,0.00161287,92379.0,92376.0,0.22933119]
[1765530038280,0.00161287,92379.0,92376.0,0.22733119]
[1765530039079,0.00132653,92377.0,92376.0,0.22933119]
[1765530039505,0.00132653,92377.0,92376.0,0.01282532]
[1765530040275,0.00132653,92377.0,92376.0,0.01082532]
[1765530040706,0.00132653,92377.0,92376.0,0.01182532]
[1765530040938,0.00132653,92377.0,92376.0,0.001]
[1765530041129,0.00132653,92377.0,92374.0,0.01082555]
[1765530041386,0.01215173,92377.0,92374.0,0.01082555]
[1765530041623,0.044504,92371.0,92367.0,0.01082637]
[1765530041950,0.0553299,92371.0,92367.0,0.01082637]
[1765530042151,0.044504,92371.0,92368.0,0.01082626]
[1765530042381,0.044504,92371.0,92362.0,0.01082696]
[1765530042382,0.0108259,92371.0,92362.0,0.01082696]
[1765530042751,0.01082801,92353.0,92350.0,0.55710305]
[1765530042897,0.22738858,92353.0,92347.0,0.01082872]
[1765530043104,0.22738858,92353.0,92348.0,0.0108286]
[1765530043269,0.22738858,92353.0,92349.0,0.01082848]
[1765530043675,0.01082801,92353.0,92350.0,0.01082837]
[1765530043878,0.01082813,92352.0,92349.0,0.01082848]
[1765530044901,0.001,92353.0,92350.0,0.22739519]
[1765530045078,0.00107582,92353.0,92350.0,0.22739519]
[1765530045284,7.582e-05,92353.0,92350.0,0.22739519]
[1765530046053,7.582e-05,92353.0,92350.0,0.22839519]
[1765530046265,7.582e-05,92353.0,92350.0,0.22739519]
[1765530046767,7.582e-05,92353.0,92350.0,0.22839519]
[1765530046768,0.001,92352.0,92350.0,0.22839519]
[1765530047115,0.00057691,92351.0,92350.0,0.22839519]
[1765530047758,0.00057691,92351.0,92350.0,0.23039519]
[1765530047962,0.00057691,92351.0,92350.0,0.22939519]
[1765530048162,0.00057691,92351.0,92350.0,0.23039519]
[1765530048363,0.00057691,92351.0,92350.0,0.22839519]
[1765530048652,0.00157691,92351.0,92350.0,0.22939519]
[1765530048860,0.00157691,92351.0,92350.0,0.23039519]
[1765530049265,0.00157691,92351.0,92350.0,0.003]
[1765530049714,0.00157691,92351.0,92350.0,0.002]
[1765530049874,0.00157691,92351.0,92350.0,0.003]
[1765530050284,0.00057691,92351.0,92350.0,0.001]
[1765530051124,0.00057691,92351.0,92349.0,0.21656906]
[1765530051308,7.582e-05,92353.0,92349.0,0.21656906]
[1765530051309,7.582e-05,92353.0,92350.0,0.01082837]
[1765530051511,0.001,92351.0,92350.0,0.01282837]
[1765530053055,7.582e-05,92353.0,92351.0,0.21656506]
[1765530054317,7.582e-05,92353.0,92351.0,0.21856506]
[1765530054771,7.582e-05,92353.0,92351.0,0.21956506]
[1765530054997,7.582e-05,92353.0,92351.0,0.21656506]
[1765530056385,7.582e-05,92353.0,92351.0,0.21856506]
[1765530057103,7.582e-05,92353.0,92351.0,0.21656506]
[1765530057286,0.00107582,92353.0,92351.0,0.21856506]
[1765530057641,0.00060575,92352.0,92351.0,0.21856506]
[1765530057842,0.00060575,92352.0,92351.0,0.21656506]
[1765530058343,0.00060575,92352.0,92351.0,0.21856506]
[1765530059182,0.00060575,92352.0,92351.0,0.21956506]
[1765530059325,0.00060575,92352.0,92351.0,0.21856506]
[1765530059667,0.00060575,92352.0,92351.0,0.21656506]
[1765530059911,0.00160575,92352.0,92351.0,0.21856506]
[1765530060392,0.00060575,92352.0,92351.0,0.21656506]
[1765530060619,0.00060575,92352.0,92351.0,0.21856506]
[1765530061160,0.00060575,92352.0,92351.0,0.21756506]
[1765530061365,0.00060575,92352.0,92351.0,0.21956506]
[1765530061577,0.00160575,92352.0,92351.0,0.21856506]
[1765530061780,0.00160575,92352.0,92351.0,0.21956506]
[1765530062367,0.00160575,92352.0,92351.0,0.003]
[1765530062566,0.05514316,92352.0,92351.0,0.003]
[1765530062756,0.04610975,92352.0,92351.0,0.003]
[1765530063116,0.04510975,92352.0,92351.0,0.001]
[1765530063315,0.04610975,92352.0,92351.0,0.003]
[1765530064402,0.04510975,92352.0,92351.0,0.001]
[1765530064743,0.044504,92349.0,92348.0,0.0108286]
[1765530065189,0.044504,92348.0,92347.0,0.01082872]
[1765530065558,0.0108286,92348.0,92343.0,0.01082919]
[1765530065760,0.01082837,92350.0,92345.0,0.01082895]
[1765530065981,0.01082837,92350.0,92347.0,0.01082872]
[1765530066415,0.01082837,92350.0,92346.0,0.01082883]
[1765530067145,0.01182837,92350.0,92347.0,0.002]
[1765530067635,0.01082837,92350.0,92346.0,0.01082883]
[1765530068035,0.01182837,92350.0,92346.0,0.01282883]
[1765530068538,0.001,92350.0,92347.0,0.01082872]
[1765530069339,0.01082813,92352.0,92348.0,0.0108286]
[1765530069537,0.001,92350.0,92349.0,0.01082848]
[1765530070199,0.04457982,92353.0,92350.0,0.22739577]
[1765530070529,0.00057691,92351.0,92350.0,0.22739577]
[1765530072854,0.00157691,92351.0,92350.0,0.22839577]
[1765530073481,0.00057691,92351.0,92350.0,0.01082837]
[1765530073686,0.00157691,92351.0,92350.0,0.01282837]
[1765530074385,0.00057691,92351.0,92350.0,0.01082837]
[1765530074545,0.00157691,92351.0,92350.0,0.01182837]
[1765530075898,0.00057691,92351.0,92350.0,0.01082837]
[1765530076233,0.00157691,92351.0,92350.0,0.01282837]
[1765530076637,0.00057691,92351.0,92350.0,0.01082837]
[1765530076972,0.00157691,92351.0,92350.0,0.01182837]
[1765530077707,0.05533307,92344.0,92339.0,0.01082966]
[1765530077923,0.01708,92343.0,92340.0,0.01082954]
[1765530079426,0.01708,92343.0,92341.0,0.21658851]
[1765530079661,0.01708,92343.0,92340.0,0.01082954]
[1765530080268,0.01708,92343.0,92340.0,0.01182954]
[1765530080442,0.01808,92343.0,92340.0,0.01482954]
[1765530080655,0.02890919,92343.0,92340.0,0.004]
[1765530081541,0.02890919,92343.0,92340.0,0.003]
[1765530082299,0.02790919,92343.0,92339.0,0.01082966]
[1765530082501,0.0108293,92342.0,92340.0,0.002]
[1765530083284,0.01082942,92341.0,92338.0,0.01082977]
[1765530083484,0.01082942,92341.0,92240.0,0.30469471]
[1765530083485,0.01082966,92339.0,92333.0,0.01083036]
[1765530083686,0.01106045,92339.0,92336.0,0.01083001]
[1765530084334,0.01082977,92338.0,92334.0,0.01083024]
[1765530084713,0.01082977,92338.0,92335.0,0.001]
[1765530085123,0.01082977,92338.0,92334.0,0.01083024]
[1765530085742,0.01244264,92338.0,92335.0,0.01083012]
[1765530085940,0.044504,92336.0,92335.0,0.01083012]
[1765530086322,0.04611687,92338.0,92336.0,0.21760024]
[1765530086708,0.04611687,92338.0,92336.0,0.21660024]
[1765530087011,0.04711687,92338.0,92336.0,0.21660024]
[1765530087432,0.04611687,92338.0,92336.0,0.21660024]
[1765530087628,0.04611687,92338.0,92336.0,0.21760024]
[1765530087854,0.04711687,92338.0,92336.0,0.22060024]
[1765530088461,0.00261287,92338.0,92336.0,0.22060024]
[1765530088892,0.01708,92337.0,92336.0,0.22060024]
[1765530089830,0.01708,92337.0,92336.0,0.21760024]
[1765530090023,0.01708,92337.0,92336.0,0.21960024]
[1765530090224,0.01808,92337.0,92336.0,0.21960024]
[1765530090474,0.01808,92337.0,92336.0,0.22060024]
[1765530099439,0.001,92337.0,92336.0,0.22060024]
[1765530105302,0.001,92337.0,92336.0,0.004]
[1765530127211,0.00094574,92337.0,92336.0,0.004]
[1765530134464,0.04544974,92337.0,92336.0,0.004]
[1765530134680,0.00094574,92337.0,92336.0,0.004]
[1765530134886,0.02186938,92337.0,92336.0,0.004]
[1765530135022,0.02348225,92337.0,92336.0,0.004]
[1765530137126,0.00255861,92337.0,92336.0,0.004]
[1765530137877,0.02963334,92337.0,92336.0,0.004]
[1765530146077,0.00255861,92337.0,92336.0,0.004]
[1765530155736,0.00094574,92337.0,92336.0,0.22739223]
[1765530155943,0.00094574,92337.0,92336.0,0.22060024]
[1765530167131,0.00094574,92337.0,92336.0,0.23142837]
[1765530179883,0.00122532,92337.0,92336.0,0.23142837]
[1765530183595,0.00122532,92337.0,92336.0,0.01482813]
[1765530187207,0.00106287,92337.0,92336.0,0.01482813]
[1765530192295,0.00106287,92337.0,92336.0,0.23142837]
[1765530193748,0.00106287,92337.0,92336.0,0.01482813]
[1765530194377,0.00106287,92337.0,92336.0,0.06185523]
[1765530196063,0.00106287,92337.0,92336.0,0.05942523]
[1765530196707,0.00106287,92337.0,92336.0,0.05036588]
[1765530197164,0.00010374,92337.0,92336.0,0.10142325]
[1765530197371,0.00010374,92337.0,92336.0,0.17140582]
[1765530197540,0.00010374,92337.0,92336.0,0.18057492]
[1765530197802,0.00010374,92337.0,92336.0,0.18000492]
[1765530198180,0.00110374,92337.0,92336.0,0.18400492]
[1765530198625,0.00010374,92337.0,92336.0,0.09292386]
[1765530198829,0.00010374,92337.0,92336.0,0.09981698]
[1765530199005,0.00110374,92337.0,92336.0,0.10681698]
[1765530199358,0.00010374,92337.0,92336.0,0.09981698]
[1765530199568,0.00010374,92337.0,92336.0,0.10281698]
[1765530199987,0.00010374,92337.0,92336.0,0.09981698]
[1765530200189,0.00010374,92337.0,92336.0,0.10281698]
[1765530200590,0.00010374,92337.0,92336.0,0.10381698]
[1765530200898,0.00110374,92337.0,92336.0,0.10381698]
[1765530201197,0.00010374,92337.0,92336.0,0.09981698]
[1765530201633,0.00110374,92337.0,92336.0,0.10481698]
[1765530201837,0.00110374,92337.0,92336.0,0.10681698]
[1765530202060,0.00010374,92337.0,92336.0,0.09981698]
[1765530202461,0.00110374,92337.0,92336.0,0.10681698]
[1765530202663,0.00110374,92337.0,92336.0,0.10381698]
[1765530203037,0.00110374,92337.0,92336.0,0.10581698]
[1765530203314,0.00110374,92337.0,92336.0,0.062689]
[1765530203524,0.00110374,92337.0,92336.0,0.10581698]
[1765530203922,0.00110374,92337.0,92336.0,0.02472125]
[1765530204128,0.00010374,92337.0,92336.0,0.05079588]
[1765530204332,0.00010374,92337.0,92336.0,0.34149588]
[1765530204535,0.00110374,92337.0,92336.0,0.34649588]
[1765530205075,0.00110374,92337.0,92336.0,0.30352813]
[1765530205076,0.00010374,92337.0,92336.0,0.30352813]
[1765530205274,0.00010374,92337.0,92336.0,0.01282813]
[1765530205527,0.00110374,92337.0,92336.0,0.01782813]
[1765530205693,0.00110374,92337.0,92336.0,0.007]
[1765530205694,0.00271661,92337.0,92336.0,0.007]
[1765530205867,0.06832177,92337.0,92336.0,0.007]
[1765530206270,0.06832177,92337.0,92336.0,0.005]
[1765530206470,0.08540177,92337.0,92336.0,0.005]
[1765530207263,0.01083106,92327.0,92324.0,0.01083141]
[1765530208475,0.01183106,92327.0,92324.0,0.01383141]
[1765530208864,0.01183106,92327.0,92324.0,0.01483141]
[1765530209791,0.2284533,92327.0,92324.0,0.004]
[1765530210831,0.22845334,92327.0,92324.0,0.004]
[1765530211507,0.28091024,92327.0,92324.0,0.004]
[1765530212050,0.06428796,92327.0,92324.0,0.004]
[1765530212247,0.2166237,92326.0,92324.0,0.004]
[1765530212464,0.01183106,92327.0,92324.0,0.004]
[1765530213442,0.22745417,92327.0,92324.0,0.001]
[1765530213610,0.001,92326.0,92324.0,0.004]
[1765530213821,0.21662604,92325.0,92324.0,0.004]
[1765530213996,0.22745734,92325.0,92322.0,0.01083165]
[1765530214200,0.0108313,92325.0,92324.0,0.001]
[1765530214467,0.0108313,92325.0,92324.0,0.004]
[1765530214880,0.0108313,92325.0,92324.0,0.001]
[1765530215083,0.01083317,92309.0,92303.0,0.01083388]
[1765530215298,0.01083306,92310.0,92305.0,0.22750528]
[1765530215509,0.01083317,92309.0,92305.0,0.01083364]
[1765530215727,0.01083329,92308.0,92305.0,0.01083364]
[1765530215908,0.01083317,92309.0,92305.0,0.22750662]
[1765530216125,0.01083306,92310.0,92306.0,0.01083353]
[1765530216342,0.01083306,92310.0,92307.0,0.01083341]
[1765530216553,0.01083259,92314.0,92310.0,0.01083306]
[1765530216799,0.01083259,92314.0,92310.0,0.22749324]
[1765530217012,0.01083259,92314.0,92310.0,0.01083306]
[1765530217610,0.01183259,92314.0,92311.0,0.01083294]
[1765530218016,0.01183259,92314.0,92310.0,0.01283306]
[1765530219102,0.01183259,92314.0,92310.0,0.22949367]
[1765530219585,0.01083259,92314.0,92311.0,0.01083294]
[1765530219994,0.01183259,92314.0,92311.0,0.01183294]
[1765530220979,0.001,92314.0,92311.0,0.01183294]
[1765530222757,0.01183259,92314.0,92311.0,0.01183294]
[1765530223694,0.22848451,92314.0,92311.0,0.01183294]
[1765530223915,0.22848449,92314.0,92311.0,0.01183294]
[1765530225432,0.01183259,92314.0,92311.0,0.01183294]
[1765530225614,0.001,92314.0,92311.0,0.01183294]
[1765530227206,0.01183259,92314.0,92311.0,0.01183294]
[1765530229356,0.001,92314.0,92311.0,0.01183294]
[1765530231108,0.01183259,92314.0,92311.0,0.01183294]
[1765530231326,0.01183259,92314.0,92311.0,0.001]
[1765530232188,0.001,92314.0,92311.0,0.01183294]
[1765530232661,0.001,92314.0,92311.0,0.22848956]
[1765530233049,0.001,92314.0,92313.0,0.2166542]
[1765530234644,0.05533612,92318.0,92315.0,0.22748191]
[1765530235197,0.05533612,92318.0,92315.0,0.01090829]
[1765530235622,0.21664482,92317.0,92315.0,7.582e-05]
[1765530236201,0.21664482,92317.0,92315.0,0.00107582]
[1765530236632,0.21664482,92317.0,92315.0,7.582e-05]
[1765530236844,0.06951565,92316.0,92315.0,7.582e-05]
[1765530237930,0.06951565,92316.0,92315.0,0.00107582]
[1765530238096,0.07051565,92316.0,92315.0,0.00107582]
[1765530238297,0.07051565,92316.0,92315.0,7.582e-05]
[1765530238599,0.07051565,92316.0,92315.0,0.00107582]
[1765530239901,0.06951565,92316.0,92315.0,0.00107582]
[1765530240110,0.07051565,92316.0,92315.0,0.00107582]
[1765530240457,0.06951565,92316.0,92315.0,0.00107582]
[1765530240655,0.07051565,92316.0,92315.0,0.00107582]
[1765530241295,0.045504,92316.0,92315.0,7.582e-05]
[1765530241707,0.001,92316.0,92315.0,0.00107582]
[1765530242087,0.001,92316.0,92315.0,7.582e-05]
[1765530242540,0.001,92316.0,92315.0,0.00107582]
[1765530260699,0.001,92316.0,92315.0,0.03904357]
[1765530262319,0.001,92316.0,92315.0,0.00107582]
[1765530263333,0.001,92316.0,92315.0,0.21772533]
[1765530266099,0.21764716,92316.0,92315.0,0.00107582]
[1765530266308,0.001,92316.0,92315.0,0.00107582]
[1765530268842,0.21764716,92316.0,92315.0,0.00107582]
[1765530269731,0.001,92316.0,92315.0,0.00107582]
[1765530269947,0.21764716,92316.0,92315.0,0.00107582]
[1765530272442,0.001,92316.0,92315.0,0.00107582]
[1765530275672,0.001,92316.0,92315.0,0.21772533]
[1765530278330,0.001,92316.0,92315.0,0.00107582]
[1765530285313,0.045504,92316.0,92315.0,0.00107582]
[1765530285518,0.07258489,92316.0,92315.0,0.00107582]
[1765530286753,0.045504,92316.0,92315.0,0.00107582]
[1765530286959,0.045504,92316.0,92315.0,0.21772533]
[1765530287435,0.045504,92316.0,92315.0,0.00107582]
[1765530289458,0.001,92316.0,92315.0,0.00107582]
[1765530289682,0.045504,92316.0,92315.0,0.00107582]
[1765530298875,0.001,92316.0,92315.0,0.21772533]
[1765530300155,0.001,92316.0,92315.0,0.00107582]
[1765530311375,0.21764716,92316.0,92315.0,0.00107582]
[1765530315073,0.26215116,92316.0,92315.0,0.00107582]
[1765530315687,0.32678833,92316.0,92315.0,0.00107582]
[1765530315984,0.26215116,92316.0,92315.0,0.00107582]
[1765530316949,0.21764716,92316.0,92315.0,0.00107582]
[1765530317154,0.26215116,92316.0,92315.0,0.00107582]
[1765530347116,0.045504,92316.0,92315.0,0.00107582]
[1765530351158,0.001,92316.0,92315.0,0.00107582]
[1765530351365,0.14580685,92316.0,92315.0,0.00107582]
[1765530351537,0.01183306,92316.0,92315.0,0.00107582]
[1765530351718,0.05599395,92316.0,92315.0,0.00107582]
[1765530352436,0.02891306,92316.0,92315.0,0.00107582]
[1765530353300,0.05599395,92316.0,92315.0,0.00107582]
[1765530353507,0.02891306,92316.0,92315.0,0.00107582]
[1765530354202,0.03891395,92316.0,92315.0,0.00107582]
[1765530354378,0.03891395,92316.0,92315.0,0.21772533]
[1765530354379,0.001,92316.0,92315.0,0.21772533]
[1765530354590,0.001,92316.0,92315.0,0.22855886]
[1765530360334,0.001,92316.0,92315.0,0.00107582]
[1765530364012,0.045504,92316.0,92315.0,0.00107582]
[1765530374154,0.045504,92316.0,92315.0,7.582e-05]
[1765530374478,0.048504,92316.0,92315.0,0.00107582]
[1765530375272,0.10142494,92316.0,92315.0,0.00107582]
[1765530375470,0.10242494,92316.0,92315.0,7.582e-05]
[1765530375875,0.10642494,92316.0,92315.0,0.00107582]
[1765530378504,0.3230721,92316.0,92315.0,0.00107582]
[1765530381008,0.37309049,92316.0,92315.0,0.00107582]
[1765530382223,0.3839259,92316.0,92315.0,0.00107582]
[1765530400544,0.01083517,92292.0,92289.0,0.01083552]
[1765530400858,0.01083517,92292.0,92288.0,0.01083564]
[1765530401368,0.01083529,92291.0,92288.0,0.01083564]
[1765530401566,0.01083529,92291.0,92289.0,0.002]
[1765530401784,0.01083529,92291.0,92289.0,0.005]
[1765530401985,0.01083529,92291.0,92289.0,0.003]
[1765530402144,0.22754182,92291.0,92289.0,0.003]
[1765530403734,0.01083541,92290.0,92289.0,0.002]
[1765530404569,0.01083541,92290.0,92285.0,0.01083599]
[1765530404901,0.01083552,92289.0,92285.0,0.01083599]
[1765530405651,0.01083552,92289.0,92285.0,0.01483599]
[1765530406667,0.01083564,92288.0,92285.0,0.004]
[1765530406868,0.01083564,92288.0,92284.0,0.22755728]
[1765530407105,0.01083564,92288.0,92285.0,0.006]
[1765530407376,0.01183552,92289.0,92286.0,0.01083587]
[1765530407798,0.01083552,92289.0,92286.0,0.01083587]
[1765530408019,0.001,92288.0,92286.0,0.01083587]
[1765530408524,0.01083552,92289.0,92286.0,0.01083587]
[1765530408754,0.01083552,92289.0,92286.0,0.01283587]
[1765530408922,0.01183552,92289.0,92286.0,0.01683587]
[1765530409545,0.001,92289.0,92286.0,0.01683587]
[1765530409939,0.001,92289.0,92286.0,0.01483587]
[1765530410103,0.001,92289.0,92286.0,0.01683587]
[1765530410523,0.001,92289.0,92286.0,0.01483587]
[1765530410756,0.001,92289.0,92286.0,0.01683587]
[1765530411461,0.001,92289.0,92287.0,0.21671524]
[1765530413059,0.01083529,92291.0,92288.0,0.01083564]
[1765530413496,0.001,92289.0,92288.0,0.01083564]
[1765530413863,0.01083505,92293.0,92288.0,0.01083564]
[1765530413864,0.01083494,92294.0,92291.0,0.01083529]
[1765530414069,0.01083494,92294.0,92289.0,0.22754607]
[1765530414271,0.001,92291.0,92289.0,0.22754607]
[1765530414696,0.01083505,92293.0,92290.0,0.01083541]
[1765530414895,0.01083494,92294.0,92291.0,0.01083529]
[1765530415104,0.001,92294.0,92291.0,0.229541]
[1765530415858,0.001,92294.0,92291.0,0.01283529]
[1765530416328,0.01083482,92295.0,92291.0,0.01083529]
[1765530416509,0.001,92293.0,92291.0,0.01083529]
[1765530416904,0.01183505,92293.0,92290.0,0.01283541]
[1765530417083,0.22752733,92297.0,92293.0,0.01083505]
[1765530417084,0.01083458,92297.0,92293.0,0.01083505]
[1765530417321,0.01083458,92297.0,92295.0,0.03796775]
[1765530417893,0.22752198,92299.0,92295.0,0.03796775]
[1765530418418,0.001,92297.0,92295.0,0.03796775]
[1765530419847,0.21769265,92297.0,92295.0,0.03796775]
[1765530420210,0.21669265,92297.0,92295.0,0.03796775]
[1765530420376,0.2912073,92297.0,92295.0,0.03896775]
[1765530420877,0.2912073,92297.0,92295.0,0.03806474]
[1765530421232,0.2922073,92297.0,92295.0,0.03906474]
[1765530422056,0.21769265,92297.0,92295.0,0.03906474]
[1765530422898,0.001,92297.0,92295.0,0.03906474]
[1765530423096,0.001,92297.0,92296.0,0.21669411]
[1765530423974,0.01083411,92301.0,92297.0,0.01083458]
[1765530423975,0.01083423,92300.0,92297.0,0.01083458]
[1765530424177,0.01083411,92301.0,92297.0,0.01083458]
[1765530424395,0.010834,92302.0,92298.0,0.01083447]
[1765530424919,0.01083388,92303.0,92299.0,0.01083435]
[1765530425148,0.010834,92302.0,92298.0,0.01083447]
[1765530426327,0.010834,92302.0,92299.0,0.01083435]
[1765530426536,0.001,92302.0,92300.0,0.01083423]
[1765530426732,0.001,92302.0,92299.0,0.01083435]
[1765530426938,0.22751191,92303.0,92299.0,0.01083435]
[1765530427859,0.001,92302.0,92300.0,0.001]
[1765530428305,0.01083411,92310.0,92307.0,0.01083341]
[1765530428454,0.01083306,92310.0,92307.0,0.01083341]
[1765530428659,0.01083271,92313.0,92309.0,0.01083317]
[1765530429058,0.22748289,92315.0,92310.0,0.22749431]
[1765530429223,0.01083259,92314.0,92311.0,0.01083294]
[1765530429636,0.01083247,92315.0,92312.0,0.01083282]
[1765530430302,0.01283247,92315.0,92312.0,0.01083282]
[1765530430444,0.003,92314.0,92312.0,0.01083282]
[1765530430650,0.01083247,92315.0,92312.0,0.01083282]
[1765530430850,0.01708,92316.0,92313.0,0.01083271]
[1765530431051,0.006,92315.0,92313.0,0.01083271]
[1765530431351,0.003,92315.0,92313.0,0.01083271]
[1765530431550,0.003,92315.0,92314.0,0.21665186]
[1765530432003,0.003,92315.0,92313.0,0.01083271]
[1765530432220,0.01083247,92315.0,92312.0,0.01083282]
[1765530432404,0.01083247,92315.0,92312.0,0.22748931]
[1765530432601,0.03091235,92316.0,92313.0,0.01183271]
[1765530433007,0.02791235,92316.0,92313.0,0.01083271]
[1765530433486,0.006,92315.0,92313.0,0.01083271]
[1765530433687,0.003,92315.0,92313.0,0.01083271]
[1765530433943,0.02791235,92316.0,92313.0,0.01083271]
[1765530434148,0.03091235,92316.0,92313.0,0.01183271]
[1765530434695,0.003,92315.0,92313.0,0.01183271]
[1765530434913,0.03091235,92316.0,92313.0,0.01183271]
[1765530435344,0.02791235,92316.0,92313.0,0.01083271]
[1765530435846,0.003,92315.0,92313.0,0.01183271]
[1765530436254,0.01708,92316.0,92313.0,0.01083271]
[1765530436407,0.02008,92316.0,92314.0,0.21665186]
[1765530437033,0.003,92315.0,92314.0,0.21665186]
[1765530437230,0.05292959,92324.0,92319.0,0.010832]
[1765530437464,0.05292959,92324.0,92320.0,0.21663778]
[1765530437991,0.05292959,92324.0,92319.0,0.010832]
[1765530438405,0.05292959,92324.0,92320.0,0.01083188]
[1765530438406,0.01083153,92323.0,92320.0,0.01083188]
[1765530439942,0.075761,92324.0,92321.0,0.01083177]
[1765530439943,0.063761,92324.0,92321.0,0.01083177]
[1765530440396,0.011,92323.0,92321.0,0.01083177]
[1765530441046,0.006,92323.0,92321.0,0.01083177]
[1765530441708,0.0124444,92323.0,92320.0,0.01083188]
[1765530441908,0.01083165,92322.0,92321.0,0.001]
[1765530442489,0.01083177,92321.0,92318.0,0.01083212]
[1765530443221,0.01083188,92320.0,92316.0,0.01183188]
[1765530443430,0.01083177,92321.0,92317.0,0.01083224]
[1765530443588,0.01083188,92320.0,92317.0,0.01083224]
[1765530443935,0.01083188,92320.0,92316.0,0.02266423]
[1765530444170,0.01083188,92320.0,92316.0,0.23931094]
[1765530444374,0.010832,92319.0,92316.0,0.01183188]
[1765530444547,0.2274722,92319.0,92316.0,0.01183188]
[1765530445136,0.010832,92319.0,92316.0,0.01283188]
[1765530445635,0.22747249,92319.0,92316.0,0.01183188]
[1765530445888,0.22747249,92319.0,92316.0,0.01283188]
[1765530445889,0.23247249,92319.0,92316.0,0.01283188]
[1765530446036,0.21664482,92317.0,92316.0,0.001]
[1765530447347,0.22164482,92317.0,92316.0,0.001]
[1765530447867,0.22164482,92317.0,92314.0,0.04335561]
[1765530448207,0.01,92317.0,92316.0,0.001]
[1765530448727,0.005,92317.0,92314.0,0.04335561]
[1765530448955,0.22747706,92317.0,92314.0,0.03252302]
[1765530449157,0.005,92317.0,92314.0,0.26100702]
[1765530449499,0.01,92317.0,92314.0,0.26100702]
[1765530449851,0.01,92317.0,92314.0,0.04435561]
[1765530450039,0.23747734,92317.0,92314.0,0.03352302]
[1765530450240,0.02083224,92317.0,92314.0,0.04435561]
[1765530451878,0.01,92317.0,92314.0,0.26100735]
[1765530452324,0.01,92317.0,92314.0,0.22848433]